[Event "15th Chennai GM Open 2025"]
[Site "Chennai"]
[Date "2025.01.02"]
[Round "1.1"]
[White "Matta, Vinay Kumar"]
[Black "Aronyak Ghosh"]
[Result "0-1"]
[ECO "B03"]
[WhiteElo "2091"]
[BlackElo "2544"]
[Annotator "TA"]
[PlyCount "114"]
[EventDate "2025.01.02"]
[EventType "swiss"]
[EventCountry "IND"]
[SourceTitle "playchess.com"]
[Source "ChessBase"]
[SourceQuality "1"]
[TimeControl "5400+30"]

{[%evp 15,114,37,70,69,44,63,44,34,52,50,41,29,37,24,34,25,39,33,26,21,18,36,29,39,39,36,28,31,35,22,17,20,20,6,81,-27,-18,-28,-19,-46,-52,-54,-59,-55,-50,-53,-51,-59,-69,-85,-106,-98,-35,-75,-47,-65,-18,-19,-4,-39,-44,-32,-31,-53,-52,-28,-5,-5,-5,-6,-6,-8,0,0,0,0,0,0,0,0,0,0,0,-8,-8,-8,-8,-387,-384,-1237,-1200,-29951,-29947,-29968,-29961,-29975,-29976,-29976,-29977,-29987,-29981]} 1. e4 {[%emt 0:00:03][%cal Be2e4,Be4e5][%mdl 32]} Nf6 {[%emt 0:00:36]} 2. e5 {[%emt 0:00:07]} Nd5 {[%emt 0:00:12]} 3. d4 {[%emt 0:00:13]} d6 {[%emt 0:00:11]} 4. c4 {[%emt 0:01:24]} Nb6 {[%emt 0:00:08]} 5. f4 {[%emt 0:00:12]} Bf5 {[%emt 0:02:45]} 6. Nc3 {[%emt 0:01:26]} dxe5 {[%emt 0:04:42]} 7. fxe5 {[%emt 0:00:18]} e6 {[%emt 0:00:17]} 8. Nf3 {[%emt 0:03:28]} Bb4 {[%emt 0:05:31]} 9. a3 $1 {[%emt 0:05:06][%cal Ba2a3,Ba3a4,Ba4a5,Ba5a6][%mdl 32]} Bxc3+ {[%emt 0:01:01]} 10. bxc3 {[%emt 0:00:07]} c5 {[%emt 0:00:06]} 11. a4 {[%emt 0:04:22] White is slightly better.} (11. dxc5 Qxd1+ 12. Kxd1 Na4 $17) 11... Nc6 {[%emt 0:01:09]} 12. a5 {[%emt 0:03:57]} (12. dxc5 Nd7 13. a5 Nxc5 $15 (13... Ncxe5 14. a6 $15)) 12... Nd7 {[%emt 0:00:12]} 13. a6 {[%emt 0:02:46]} b6 14. Bg5 {[%emt 0:14:17]} f6 {[%emt 0:13:48]} 15. exf6 {[%emt 0:00:33]} Nxf6 {[%emt 0:00:39]} 16. Qa4 {[%emt 0:03:14]} Qd7 {[%emt 0:00:59]} 17. dxc5 {[%emt 0:03:12]} bxc5 {[%emt 0:05:03]} 18. Rd1 {[%emt 0:02:00]} Qc7 {[%emt 0:00:41]} 19. Bxf6 {[%emt 0:11:50]} gxf6 {[%emt 0:00:20]} 20. Qb5 {[%emt 0:01:20]} Qb6 {[%emt 0:24:39]} 21. Rd6 {[%emt 0:10:52]} Rc8 {[%emt 0:00:43]} 22. Nh4 {[%emt 0:01:20] [#] aiming for Nxf5.} Bg6 {[%emt 0:03:43]} 23. Qxb6 {[%emt 0:07:07]} (23. Rxe6+ Kf7 24. Rd6 Rhd8 25. Rxd8 (25. Qxb6 axb6 26. Rxd8 Nxd8 $11) 25... Qxd8 $14) 23... axb6 {[%emt 0:00:02]} 24. a7 {[%emt 0:01:11]} Nd8 {[%emt 0:10:28]} (24... Nxa7 $11 {keeps the balance.} 25. Rxe6+ (25. Rxb6 Rc6 $11) 25... Kf7 26. Rxb6 Rb8 27. Rxb8 Rxb8) 25. Nxg6 {[%emt 0:07:28]} (25. Rxb6 $16 Ra8 26. Ra6 (26. Nxg6 hxg6 27. Rb5 Rxa7 $15)) 25... hxg6 $11 {[%emt 0:00:05]} 26. Bd3 {[%emt 0:01:08]} f5 {[%emt 0:02:50] Prevents Be4} 27. Bc2 {[%emt 0:05:57][%cal Oe1f2] [#] Kf2! is the strong threat.} Rh7 $1 {[%emt 0:01:57]} 28. Ba4+ {[%emt 0:01:22]} Kf8 {[%emt 0:00:05]} 29. Bd7 {[%emt 0:02:25]} (29. Rxb6 Rxa7 30. Bc2 Rc6 $19) 29... Ra8 {[%emt 0:00:15]} 30. O-O {[%emt 0:01:19]} Ke7 {[%emt 0:05:47]} (30... Rxa7 31. Bxe6 Nxe6 (31... Ke7 32. Rxb6 Nxe6 33. Re1 $16) 32. Rxe6 $11) 31. Rfd1 {[%emt 0:00:43] And now Bb5 would win.} Rxa7 {[%emt 0:01:01][%cal Oa7a1]} 32. Bb5 {[%emt 0:00:14]} Nf7 {[%emt 0:01:36]} 33. Rxb6 {[%emt 0:00:07]} Rc7 {[%emt 0:00:19]} (33... Kf6 $17 34. Ba6 Ng5) 34. Ra1 {[%emt 0:01:50]} Kf6 {[%emt 0:03:28]} 35. Raa6 {[%emt 0:01:32]} Ng5 {[%emt 0:00:09]} (35... Re7 $15 {might be stronger.} 36. Bc6 (36. Rc6 Ne5 $17) 36... Nd8) 36. Bc6 $1 {[%emt 0:01:46]} Ke5 {[%emt 0:01:45]} 37. g3 {[%emt 0:00:52]} Ra7 {[%emt 0:01:35]} 38. h4 {[%emt 0:00:55]} Rxa6 {[%emt 0:00:02]} 39. Rxa6 $15 {[%emt 0:00:05][%mdl 4096] Endgame. KRB-KRN} Nf7 {[%emt 0:00:32]} 40. Be8 {[%emt 0:00:20]} Kf6 {[%emt 0:04:36]} 41. Bxf7 {[%emt 0:00:32]} Rxf7 $11 {[%emt 0:00:02] KR-KR} 42. Rc6 {[%emt 0:00:05]} Rd7 {[%emt 0:00:09]} 43. Rxc5 {[%emt 0:00:09]} Rd3 {[%emt 0:00:04]} 44. Kf2 {[%emt 0:00:17]} Rxc3 {[%emt 0:00:02]} 45. Rc8 {[%emt 0:00:13]} Ke5 {[%emt 0:00:21]} 46. Rg8 {[%emt 0:00:42]} Kf6 {[%emt 0:00:33]} 47. Rc8 {[%emt 0:00:12]} e5 {[%emt 0:00:52]} 48. Rc6+ {[%emt 0:01:04]} Kg7 {[%emt 0:00:19]} 49. Re6 {[%emt 0:01:36]} e4 {[%emt 0:00:08]} 50. g4 {[%emt 0:00:41]} Kf7 {[%emt 0:00:34]} 51. gxf5 {[%emt 0:01:08][%mdl 8192] Loses the game.} (51. Rd6 $11 {and White stays safe.}) 51... gxf5 $19 {[%emt 0:00:03]} ({Weaker is} 51... Rxc4 52. Rxg6 (52. fxg6+ Kxe6 53. Ke3 Kf5 $19) 52... e3+ 53. Kxe3 $11) 52. Rc6 {[%emt 0:00:11]} (52. Re5 Kf6 (52... Rxc4 53. Rxf5+ Kg7 54. Rb5 $11) 53. Re8) 52... f4 {[%emt 0:00:08]} 53. h5 {[%emt 0:00:29]} Rc2+ {[%emt 0:00:12] Black mates.} 54. Ke1 {[%emt 0:00:12]} f3 {[%emt 0:00:09]} 55. Rc5 {[%emt 0:01:20]} f2+ {[%emt 0:00:42]} 56. Kf1 {[%emt 0:00:07]} e3 {[%emt 0:00:05]} 57. Kg2 {[%emt 0:00:25]} Rc1 {[%emt 0:00:12] Weighted Error Value: White=0.40/Black=0.07 (flawless) .  Loses game:     	White=1     	---        Mistake:       	White=2     	Black=3      Inaccurate:     	White=4     	Black=1      OK:         	White=20    	Black=19     Best:        	White=1     	Black=4      Strong:       	White=1     	Black=1} 0-1

[Event "15th Chennai GM Open 2025"]
[Site "Chennai"]
[Date "2025.01.02"]
[Round "1.2"]
[White "Siddharth, Jagadeesh"]
[Black "Sarwat, Walaa"]
[Result "1-0"]
[ECO "C50"]
[WhiteElo "2515"]
[BlackElo "2088"]
[Annotator "TA"]
[PlyCount "111"]
[EventDate "2025.01.02"]
[EventType "swiss"]
[EventCountry "IND"]
[SourceTitle "playchess.com"]
[Source "ChessBase"]
[SourceQuality "1"]
[TimeControl "5400+30"]

{[%evp 12,111,15,10,28,17,27,17,39,37,37,33,38,30,46,52,47,47,55,54,63,75,60,69,66,66,69,67,87,84,123,83,127,107,96,88,90,86,99,103,96,84,87,89,135,83,80,96,104,113,122,71,127,136,118,106,112,114,107,88,241,144,265,258,339,349,377,402,389,364,526,491,551,501,956,956,956,922,976,967,1486,1475,1487,1404,1218,1014,1010,1001,29964,1609,29958,4394,29969,29958,29950,29937,29993,29985,29983,5623,29980,29974]} 1. e4 {[%emt 0:00:04]} e5 {[%emt 0:00:11]} 2. Nf3 {[%emt 0:00:05]} Nc6 {[%emt 0:00:11]} 3. Bc4 {[%emt 0:00:06]} Bc5 {[%emt 0:00:27]} 4. d3 {[%emt 0:00:05]} Nf6 {[%emt 0:00:58]} 5. Bg5 {[%emt 0:00:05]} h6 {[%emt 0:01:06]} 6. Bh4 {[%emt 0:00:07]} O-O {[%emt 0:01:08]} 7. O-O {[%emt 0:00:58]} Be7 {[%emt 0:01:00]} 8. Bg3 {[%emt 0:00:09]} d6 {[%emt 0:00:11]} 9. a4 {[%emt 0:00:05]} Be6 {[%emt 0:01:00]} 10. Bxe6 {[%emt 0:01:46]} fxe6 {[%emt 0:00:10]} 11. c3 {[%emt 0:00:25]} Qd7 {[%emt 0:01:33]} 12. b4 {[%emt 0:00:44][%cal Bb2b4,Bb4b5][%mdl 32]} Qe8 {[%emt 0:03:36]} 13. Nbd2 {[%emt 0:03:41]} Nh5 {[%emt 0:03:17]} 14. b5 {[%emt 0:02:21]} Nb8 {[%emt 0:01:04]} 15. d4 {[%emt 0:01:49]} exd4 {[%emt 0:01:34]} 16. cxd4 {[%emt 0:08:06]} Nd7 {[%emt 0:00:47]} 17. Qb3 {[%emt 0:01:53]} Qf7 {[%emt 0:00:40]} 18. Rac1 Bd8 {[%emt 0:02:13]} 19. Nc4 {[%emt 0:14:08]} Qg6 {[%emt 0:03:08]} 20. Rfe1 {[%emt 0:03:40]} Nf4 {[%emt 0:01:18]} 21. Qe3 {[%emt 0:10:13]} Qg4 {[%emt 0:01:39]} 22. Rc3 {[%emt 0:00:20]} Nh5 {[%emt 0:02:11]} 23. h3 {[%emt 0:06:18]} Qg6 {[%emt 0:00:16]} 24. Bh2 {[%emt 0:00:04]} Nhf6 {[%emt 0:03:41]} 25. Rcc1 {[%emt 0:01:53]} Nh7 {[%emt 0:03:42]} 26. Kh1 {[%emt 0:10:00]} Ng5 {[%emt 0:01:17]} 27. Nfd2 {[%emt 0:00:27]} Nf7 {[%emt 0:03:27]} (27... d5) 28. Nb2 {[%emt 0:04:16]} (28. f4) 28... a6 $16 {[%emt 0:02:12]} 29. Qb3 {[%emt 0:02:50]} e5 {[%emt 0:09:57]} 30. dxe5 {[%emt 0:03:15]} dxe5 {[%emt 0:01:24]} 31. Nd3 {[%emt 0:00:39]} ({White should play} 31. f4) 31... Kh7 {[%emt 0:02:22]} ({Better is} 31... axb5 32. Qxb5 (32. Bxe5 bxa4 33. Qxb7 Qa6 $11) (32. axb5 Re8 $16) 32... Qe6) 32. f4 {[%emt 0:03:56]} axb5 {[%emt 0:18:35]} 33. Qxb5 {[%emt 0:03:06]} Qe6 {[%emt 0:00:39]} 34. f5 {[%emt 0:03:48]} (34. Nxe5 Ndxe5 35. fxe5 Bh4 $14) 34... Qe8 {[%emt 0:05:05]} 35. Nf3 {[%emt 0:00:06] White is much more active.} Nb6 $2 {[%emt 0:01:24]} (35... b6 $16) 36. Qb1 {[%emt 0:05:32]} (36. Bxe5 $18 Rxa4 37. Qb1) 36... Rxa4 {[%emt 0:10:24]} (36... Nd7 $16 37. Qxb7 Rxa4) 37. Nc5 $18 {[%emt 0:01:54]} Rc4 {[%emt 0:00:33]} 38. Ne6 {[%emt 0:00:22]} (38. Nxb7 Bf6 $16) 38... Rg8 {[%emt 0:00:36]} 39. Nxe5 {[%emt 0:00:10]} (39. Bxe5 Rxc1 40. Rxc1 Nxe5 $18) 39... Nxe5 {[%emt 0:01:55]} 40. Bxe5 {[%emt 0:00:03]} Qc6 {[%emt 0:07:27]} (40... Bh4 {was called for.} 41. Rf1 (41. Nxc7 $2 {too greedy.} Qxe5 42. Qxb6 Rxc7 $19) 41... Qc6 42. Bxc7 (42. Nxc7 Rc8 $16) 42... Rc8) 41. Bd4 {[%emt 0:04:43]} Bh4 {[%emt 0:03:04]} 42. Rf1 {[%emt 0:00:02]} Rxc1 {[%emt 0:01:03]} (42... Bg5 $142) 43. Rxc1 {[%emt 0:01:37]} Nc4 {[%emt 0:00:05]} 44. e5 {[%emt 0:01:34]} Kh8 {[%emt 0:00:21][%cal Bh7h8,Bh8g7,Bg7g8,Bg8f8][%mdl 32]} 45. Nf4 {[%emt 0:00:28] Threatens to win with Ng6+.} Rd8 {[%emt 0:00:45] [#]} 46. f6 $1 {[%emt 0:00:48]} gxf6 {[%emt 0:02:38]} 47. Ng6+ {[%emt 0:00:09]} Kg7 {[%emt 0:00:47]} 48. Nxh4 {[%emt 0:00:07]} fxe5 {[%emt 0:00:34]} 49. Bxe5+ {[%emt 0:00:08]} Kg8 {[%emt 0:00:19]} 50. Nf5 {[%emt 0:00:51]} (50. Qb3 $142 Qe4 51. Qg3+ (51. Qxc4+ Qxc4 52. Rxc4 Rd1+ 53. Kh2 c6 $18) (51. Rxc4 Qe1+ 52. Kh2 Qxe5+ 53. Rf4+ Rd5 $18) (51. Bxc7 Rd4 $18) 51... Kf7 52. Qg7+ (52. Bxc7 Rd3 $18) (52. Re1 Qxe1+ 53. Qxe1 Nd6 $18) 52... Ke6 53. Qf6+ (53. Bxc7 Rd4 $18) (53. Qxh6+ Kd5 $18) (53. Qxc7 Rd7 $18) 53... Kd5 54. Qxd8+ Kxe5 55. Qe7+ (55. Qxc7+ Ke6 $18) (55. Qe8+ Kd5 $18) 55... Kd5 56. Rd1+ (56. Qxc7 Qd3 $18) 56... Qd4 57. Qf7+ (57. Rxd4+ Kxd4 58. Nf5+ Kc3 $18) 57... Kc6 58. Rxd4) 50... Qe6 {[%emt 0:00:47]} 51. Ba1 {[%emt 0:00:32]} (51. Nxh6+ $142 Kf8 52. Rf1+ (52. Bxc7 Rd7 $18) 52... Ke8 53. Rf6 (53. Bxc7 Ne3 $18) 53... Rd6 54. Rxe6+ Rxe6 55. Qb5+ (55. Bxc7 Rxh6 56. Qe4+ Kf8 $18) 55... c6 56. Qxc4 Rxh6 57. Qg8+ Ke7 58. Qg5+ Ke6 59. Qxh6+ Kxe5 60. Qe3+ Kd6 61. h4) 51... Rf8 {[%emt 0:00:39] [#]} 52. Rxc4 $1 {[%emt 0:00:25]} Rxf5 {[%emt 0:00:28]} 53. Rxc7 {[%emt 0:00:09]} b5 {[%emt 0:00:26]} 54. Rg7+ {[%emt 0:01:08]} Kf8 {[%emt 0:00:07]} 55. Rg3 {[%emt 0:00:11]} (55. Rb7 $142 Ke8 56. Bd4 (56. Rxb5 Rxb5 57. Qxb5+ Kf7 $18) 56... Rh5 57. Rb8+ (57. Rxb5 Rxb5 58. Qxb5+ Kf7 $18) 57... Kd7 58. Qh7+ (58. Rxb5 Rxb5 59. Qxb5+ Kc8 $18) 58... Kd6 59. Rb6+ Kd5 60. Qb7+ (60. Rxb5+ Kxd4 61. Rxh5 Qe4 $18) (60. Rxe6 Kxe6 61. Qg6+ Kd5 $18) 60... Kxd4 61. Rxe6) 55... Qf7 {[%emt 0:00:32] [#]} 56. Qxf5 $1 {[%emt 0:00:14]} 1-0

[Event "15th Chennai GM Open 2025"]
[Site "Chennai"]
[Date "2025.01.02"]
[Round "1.3"]
[White "Divitt Arora"]
[Black "Iniyan, Pa"]
[Result "0-1"]
[ECO "B51"]
[WhiteElo "2086"]
[BlackElo "2508"]
[Annotator "TA"]
[PlyCount "68"]
[EventDate "2025.01.02"]
[EventType "swiss"]
[EventCountry "IND"]
[SourceTitle "playchess.com"]
[Source "ChessBase"]
[SourceQuality "1"]
[TimeControl "5400+30"]

{[%evp 12,68,18,0,14,0,0,0,0,0,0,0,0,-14,-16,-20,-26,-15,0,0,0,-57,-58,-48,-45,-65,-79,-77,-85,-67,-87,-72,-71,-79,-77,-95,-99,-90,-92,-147,-154,-170,-162,-373,-377,-375,-392,-528,-513,-1101,-1069,-1097,-1093,-1284,-1284,-1486,-1498,-1566,-1659]} 1. e4 {[%emt 0:00:11]} c5 {[%emt 0:00:16]} 2. Nf3 {[%emt 0:00:13]} d6 {[%emt 0:00:07]} 3. Bb5+ {[%emt 0:00:07]} Nd7 {[%emt 0:00:05]} 4. d4 {[%emt 0:00:13]} cxd4 {[%emt 0:00:09]} 5. Qxd4 {[%emt 0:00:07]} a6 {[%emt 0:00:06]} 6. Bxd7+ {[%emt 0:00:12]} Bxd7 {[%emt 0:00:07]} 7. O-O {[%emt 0:01:12]} Rc8 {[%emt 0:00:50][%cal Oe7e5]} (7... Nf6 $5) 8. c4 {[%emt 0:00:53]} e5 {[%emt 0:00:26]} 9. Qd3 {[%emt 0:02:32]} Qc7 {[%emt 0:00:06]} 10. b3 {[%emt 0:01:44]} b5 {[%emt 0:00:08][%cal Rb5c4]} 11. Nfd2 {[%emt 0:03:03]} Nf6 {[%emt 0:00:26]} 12. Bb2 {[%emt 0:03:15]} Be7 {[%emt 0:02:09]} 13. Nc3 {[%emt 0:04:43][%cal Rc4b5]} O-O {[%emt 0:00:09]} 14. Rac1 {[%emt 0:20:59][%cal Rc4b5]} Qa5 {[%emt 0:04:06]} 15. a3 {[%emt 0:01:54]} Qb6 {[%emt 0:01:06]} 16. Rfd1 {[%emt 0:04:06]} (16. cxb5 $11 axb5 17. b4) 16... Bg4 $1 $15 {[%emt 0:08:25]} 17. Ne2 {[%emt 0:11:48]} Nd7 {[%emt 0:01:23][%cal Bf6d7,Bd7c5,Bc5d3][%mdl 32] and ...Nc5 should not be overlooked} 18. h3 {[%emt 0:06:18]} Nc5 {[%emt 0:36:40]} 19. Qe3 {[%emt 0:00:08] [#]} Bg5 $1 {[%emt 0:00:08]} 20. Qxg5 {[%emt 0:02:19]} Bxe2 {[%emt 0:00:07]} 21. Re1 {[%emt 0:01:32] [#]} Bxc4 $1 {[%emt 0:01:07]} 22. bxc4 {[%emt 0:11:49] Black must now prevent Qe3.} Nd3 $1 $36 {[%emt 0:01:48][%csl LRb2,LRc1,LRe1,LRf2][%mdl 2048] Black is in control.} 23. Re3 {[%emt 0:13:34]} Nxb2 {[%emt 0:00:08]} 24. Rg3 {[%emt 0:00:04]} g6 {[%emt 0:00:07][%cal Rb5c4] Active counter play!} (24... Nxc4 25. Qxg7#) 25. Qh6 {[%emt 0:00:52]} ({White should play} 25. Rb3 Na4 (25... Nxc4 $2 26. Rxc4 a5 27. Qf6 $18) 26. Qh6) 25... Nxc4 $17 {[%emt 0:14:01]} 26. Nf3 {[%emt 0:03:23] White wants to mate with Ng5.} Qb7 {[%emt 0:00:06][%cal Of7f6]} (26... Nxa3 27. Ng5 Rxc1+ 28. Kh2) 27. Ng5 $2 {[%emt 0:01:13]} (27. Rd1) 27... f6 $19 {[%emt 0:00:17]} 28. Ne6 {[%emt 0:02:22]} ({Reject} 28. Nxh7 Qxh7 29. Rxg6+ Kh8 30. Rxf6 (30. Rxc4 $2 bxc4 31. Rxf6 Qxh6 $19) 30... Qxh6 31. Rxh6+ Kg7) 28... Rf7 {[%emt 0:00:37]} 29. Rcc3 {[%emt 0:02:21][%cal Og3g6]} Qe7 {[%emt 0:07:43]} 30. Rxg6+ {[%emt 0:01:02]} (30. f4 $142 Qxe6 31. f5) 30... hxg6 {[%emt 0:00:06]} 31. Qxg6+ {[%emt 0:00:39]} Kh8 {[%emt 0:00:12]} 32. Rf3 {[%emt 0:01:04]} Qxe6 {[%emt 0:01:18]} 33. Rf5 {[%emt 0:00:11]} Rg7 {[%emt 0:00:11]} ({Worse is} 33... Nxa3 34. Rh5+) 34. Qh6+ {[%emt 0:00:54]} Rh7 {[%emt 0:00:08]} 0-1

[Event "15th Chennai GM Open 2025"]
[Site "Chennai"]
[Date "2025.01.02"]
[Round "1.4"]
[White "Shyam, Sundar M."]
[Black "Sharnarthi Viresh"]
[Result "1/2-1/2"]
[ECO "A45"]
[WhiteElo "2470"]
[BlackElo "2084"]
[Annotator "TA"]
[PlyCount "123"]
[EventDate "2025.01.02"]
[EventType "swiss"]
[EventCountry "IND"]
[SourceTitle "playchess.com"]
[Source "ChessBase"]
[SourceQuality "1"]
[TimeControl "5400+30"]

{[%evp 10,123,11,8,22,0,16,27,43,44,49,39,80,41,45,27,63,78,56,33,37,34,37,0,79,17,47,41,91,79,103,109,118,86,84,81,136,137,253,251,261,256,237,229,261,243,258,215,230,230,249,236,225,233,229,204,280,287,283,290,298,307,275,293,323,328,474,466,475,471,469,475,483,467,576,510,581,574,523,531,580,516,583,598,575,587,29967,29968,29968,29970,29968,11821,29975,29973,29976,29977,29974,5683,29976,29977,29977,29974,29973,29975,29975,-8,-8,-8,-8,-8,-8,-8,-8,-8,-8,-8]} 1. d4 {[%emt 0:00:08]} Nf6 {[%emt 0:00:18]} 2. Bg5 {[%emt 0:00:05]} Ne4 {[%emt 0:01:47]} 3. Bf4 {[%emt 0:00:11]} d5 {[%emt 0:02:46]} 4. Nd2 {[%emt 0:00:11]} Bf5 {[%emt 0:01:11]} 5. e3 {[%emt 0:01:28]} e6 {[%emt 0:02:20]} 6. Bd3 {[%emt 0:12:09]} Nd7 {[%emt 0:10:54]} 7. Bxe4 {[%emt 0:04:34]} dxe4 {[%emt 0:00:08]} 8. Ne2 Bg6 {[%emt 0:08:32]} 9. c3 {[%emt 0:05:29]} Be7 {[%emt 0:03:31]} 10. Qb3 {[%emt 0:02:52]} O-O {[%emt 0:09:02]} 11. Ng3 {[%emt 0:07:27]} Nf6 {[%emt 0:00:41]} 12. O-O {[%emt 0:09:06]} h5 {[%emt 0:13:55]} 13. Bg5 {[%emt 0:10:14] White is more active.} (13. Qxb7 Rb8 14. Qxc7 (14. Qxa7 Nd5 $11) 14... Qxc7 15. Bxc7 Rxb2 $15) 13... Qd5 {[%emt 0:01:02]} 14. h4 {[%emt 0:01:21]} b5 {[%emt 0:03:18]} 15. Rfc1 {[%emt 0:07:12]} Rfb8 {[%emt 0:01:34]} 16. Rc2 {[%emt 0:03:08]} (16. Qxd5 {simplifies} exd5 17. Rc2 c6 18. a4) 16... Rb6 {[%emt 0:14:12] [#]} (16... Qd7 $11) 17. c4 {[%emt 0:02:12]} (17. Qxd5 $1 $16 exd5 18. a4) 17... bxc4 {[%emt 0:00:15]} 18. Qxc4 {[%emt 0:00:02]} Rab8 {[%emt 0:02:26]} (18... Qd8 $14) 19. b3 $16 {[%emt 0:04:15]} (19. Qxc7 Bd6 20. Qc3 Ng4 $15) 19... R8b7 {[%emt 0:02:45]} 20. Qe2 {[%emt 0:02:15]} e5 {[%emt 0:09:14]} 21. Nc4 {[%emt 0:09:28]} exd4 {[%emt 0:00:08] Threatens to win with ...d3.} 22. Nxb6 {[%emt 0:00:04]} cxb6 {[%emt 0:00:34]} (22... axb6 $142 23. exd4 Bf8 24. Bxf6 gxf6) 23. exd4 {[%emt 0:00:55]} b5 {[%emt 0:00:40]} (23... Kh7 $16 {is a better defense.}) 24. Nf1 $18 {[%emt 0:08:50][%cal Bg3f1,Bf1e3,Be3d5,Bd5f6][%mdl 32]} Qxd4 {[%emt 0:00:26]} 25. Rd1 {[%emt 0:00:03]} Qe5 {[%emt 0:00:07]} 26. Ne3 {[%emt 0:00:24] Prevents Ng4} Kh7 {[%emt 0:00:43]} 27. g3 {[%emt 0:00:08]} Qe6 {[%emt 0:04:49]} 28. Kg2 {[%emt 0:02:00]} a6 {[%emt 0:00:30]} 29. Rcd2 {[%emt 0:00:59]} Nd7 {[%emt 0:01:02]} 30. Bxe7 {[%emt 0:00:14]} Qxe7 {[%emt 0:00:01]} 31. Nd5 {[%emt 0:00:56]} Qc5 {[%emt 0:02:33]} 32. Qe3 {[%emt 0:02:51]} b4 {[%emt 0:03:50] [#]} 33. Nf6+ $1 {[%emt 0:01:42][%mdl 512]} gxf6 {[%emt 0:00:23]} 34. Rxd7 {[%emt 0:00:02]} Rb5 {[%emt 0:00:52]} 35. Qxc5 {[%emt 0:02:09]} Rxc5 {[%emt 0:00:01][%mdl 4096] Endgame KRR-KRB} 36. R7d6 {[%emt 0:00:04][%cal Bd7d6,Bd6f6,Bf6b6,Bb6b5][%mdl 32]} Ra5 {[%emt 0:01:03]} 37. R1d2 {[%emt 0:00:15]} ({Weaker is} 37. Rxf6 Rxa2 38. Kf1 a5 $14) 37... Ra3 {[%emt 0:00:30]} (37... Kg7 $142 38. Rb6 Bf5 39. Rxb4 Kh7) 38. Rxf6 {[%emt 0:00:39]} Kg7 {[%emt 0:00:16]} 39. Rb6 {[%emt 0:00:42]} a5 {[%emt 0:00:01]} 40. Rb2 {[%emt 0:00:38]} Bf5 {[%emt 0:00:38]} 41. Kf1 {[%emt 0:00:10]} Be6 {[%emt 0:01:27]} 42. Ke2 {[%emt 0:00:20]} Kf6 {[%emt 0:00:16]} 43. Ke3 {[%emt 0:00:26]} Ke5 {[%emt 0:00:02]} 44. Rb5+ {[%emt 0:01:06]} Kd6 {[%emt 0:00:01]} 45. Rc2 {[%emt 0:01:22]} a4 {[%emt 0:00:53]} 46. Rxb4 {[%emt 0:00:04]} axb3 {[%emt 0:00:06]} 47. axb3 {[%emt 0:00:02]} Rxb3+ {[%emt 0:00:23]} 48. Rxb3 {[%emt 0:00:04]} (48. Kxe4 $2 Rxb4+ 49. Ke3 Rb3+ 50. Kf4 Bg4 $19) 48... Bxb3 {[%emt 0:00:06] KR-KB} 49. Rb2 {[%emt 0:00:35]} Bd5 {[%emt 0:00:27]} 50. Kf4 {[%emt 0:00:09]} (50. Kd4 $142 Bc6 51. Rb8 f5 52. Rh8 Ba4 53. Rxh5 Ke6 54. Ke3 Kf6 55. Rg5) 50... f6 {[%emt 0:00:27]} 51. Rb8 {[%emt 0:00:39]} Ke7 {[%emt 0:00:18]} 52. Rh8 {[%emt 0:00:09]} Bf7 {[%emt 0:00:07]} 53. Kf5 {[%emt 0:01:47]} (53. Rh7 $142 Ke6 54. Rxf7 (54. Kxe4 $2 {loses.} Bg6+ 55. Kf3 Bxh7 $19) 54... Kxf7 55. Kxe4 Kf8 56. Kf5 Kf7 57. f3 Ke7 58. Kg6) 53... Be6+ {[%emt 0:00:20]} 54. Kxe4 {[%emt 0:00:07]} Bf7 {[%emt 0:00:22]} 55. Kf5 {[%emt 0:00:19]} Be6+ {[%emt 0:00:02]} 56. Kg6 {[%emt 0:00:05]} Bg4 {[%emt 0:00:09] [#]} 57. Rf8 $2 {[%emt 0:00:21]} Kxf8 $11 {[%emt 0:00:05]} 58. Kxf6 {[%emt 0:00:06]} Ke8 {[%emt 0:00:24]} 59. Kg5 {[%emt 0:02:52]} Kf7 {[%emt 0:00:09]} 60. Kf4 $1 {[%emt 0:00:11]} Kf6 {[%emt 0:00:12]} 61. f3 {[%emt 0:00:05]} Be6 {[%emt 0:00:02]} 62. g4 {[%emt 0:00:01]} 1/2-1/2